bitfinex-derivatives/quotes_SOLF0:USTF0_20240912
["timestamp","ask_amount","ask_price","bid_price","bid_amount"]
[1726116093920,3.3161,135.69,135.62,3.9624]
[1726116093921,3.3161,135.69,135.65,11.33]
[1726116094125,3.3161,135.69,135.62,3.9624]
[1726116094421,3.77293634,135.73,135.67,11.33]
[1726116096023,3.77293634,135.73,135.67,3.3162]
[1726116096219,3.77293634,135.73,135.67,14.6462]
[1726116096630,15.10293634,135.73,135.67,14.6462]
[1726116096927,3.3156,135.7,135.67,14.6462]
[1726116098627,3.3156,135.7,135.66,14.6465]
[1726116099227,3.316,135.69,135.66,11.33]
[1726116099532,15.10293634,135.73,135.66,11.33]
[1726116100234,3.3154,135.71,135.66,14.6463]
[1726116100526,15.10293634,135.73,135.66,14.6463]
[1726116100931,3.3156,135.7,135.66,14.6463]
[1726116101131,3.77293634,135.73,135.67,14.6463]
[1726116101329,11.33,135.73,135.67,14.6463]
[1726116101529,3.71239508,135.72,135.67,14.6463]
[1726116102229,3.3154,135.71,135.67,14.6463]
[1726116103535,3.3159,135.69,135.65,3.3167]
[1726116103833,3.3159,135.69,135.65,14.6467]
[1726116104327,3.3159,135.69,135.65,11.33]
[1726116104630,15.04239508,135.72,135.65,11.33]
[1726116105327,3.3158,135.7,135.66,3.3165]
[1726116105830,3.3159,135.69,135.65,14.6467]
[1726116106525,3.3159,135.69,135.66,3.3165]
[1726116107532,11.33,135.69,135.62,3.9624]
[1726116107726,11.33,135.69,135.63,11.33]
[1726116108228,3.3165,135.67,135.63,11.33]
[1726116108427,11.33,135.69,135.63,11.33]
[1726116108825,11.33,135.7,135.64,11.33]
[1726116109023,3.3162,135.68,135.64,14.6469]
[1726116109225,3.3162,135.68,135.65,11.33]
[1726116110937,3.3162,135.68,135.65,14.6468]
[1726116111836,3.3162,135.68,135.64,3.317]
[1726116112029,3.3162,135.68,135.64,14.647]
[1726116112426,3.3164,135.67,135.63,3.3173]
[1726116112626,3.3164,135.67,135.52,5.84385477]
[1726116112627,11.33,135.67,135.52,5.84385477]
[1726116112934,1.3685,135.73,135.6,11.33]
[1726116112935,11.33,135.66,135.6,11.33]
[1726116113135,3.3171,135.64,135.6,14.6479]
[1726116113741,15.09740505,135.66,135.6,14.6479]
[1726116114040,15.09740505,135.66,135.6,11.33]
[1726116114634,3.3172,135.64,135.6,14.648]
[1726116115437,3.3172,135.64,135.52,9.85625477]
[1726116115438,11.33,135.64,135.52,4.0124]
[1726116115641,11.33,135.64,135.58,11.33]
[1726116116030,3.3175,135.63,135.59,3.3182]
[1726116116941,3.3176,135.62,135.59,3.3182]
[1726116117137,11.33,135.64,135.59,3.3182]
[1726116117935,3.3175,135.63,135.59,3.3182]
[1726116119940,3.3175,135.63,135.58,11.33]
[1726116119941,14.6472,135.64,135.6,3.3179]
[1726116120144,11.33,135.64,135.6,3.3179]
[1726116120342,15.09740505,135.66,135.6,14.6479]
[1726116120539,3.3172,135.64,135.6,14.6479]
[1726116120744,3.3172,135.64,135.61,3.3178]
[1726116121244,3.317,135.65,135.62,14.6475]
[1726116121437,11.33,135.68,135.62,14.6475]
[1726116121937,3.3167,135.66,135.62,14.6475]
[1726116122141,3.3167,135.66,135.63,3.3173]
[1726116123838,3.3164,135.67,135.63,3.3173]
[1726116124039,11.33,135.7,135.64,14.647]
[1726116124235,11.33,135.7,135.64,11.33]
[1726116124441,11.33,135.71,135.65,11.33]
[1726116124646,11.33,135.71,135.65,14.6467]
[1726116125543,3.3161,135.68,135.65,14.6467]
[1726116128849,11.33,135.66,135.59,15.3911]
[1726116129048,3.6642869,135.65,135.59,15.3911]
[1726116129255,3.3175,135.63,135.59,18.7093]
[1726116129553,3.3175,135.63,135.59,15.3911]
[1726116130552,3.3175,135.63,135.59,18.7094]
[1726116131245,3.3176,135.62,135.59,18.7094]
[1726116131944,3.3174,135.63,135.59,18.7094]
[1726116134556,3.3175,135.62,135.59,18.7094]
[1726116134855,15.09565285,135.65,135.6,3.318]
[1726116135154,3.3173,135.63,135.6,3.318]
[1726116135451,3.3173,135.63,135.59,15.3911]
[1726116135651,3.3173,135.63,135.59,18.7092]
[1726116136447,3.3176,135.62,135.59,18.7092]
[1726116142955,3.3179,135.61,135.59,4.0611]
[1726116143146,15.09565285,135.65,135.59,4.0611]
[1726116143659,3.3176,135.62,135.59,4.0611]
[1726116144254,3.3176,135.62,135.59,7.3794]
[1726116148159,3.3174,135.63,135.59,7.3794]
[1726116148358,15.09565285,135.65,135.6,3.318]
[1726116148759,3.3173,135.63,135.6,3.318]
[1726116148959,15.09565285,135.65,135.6,3.318]
[1726116149163,3.3172,135.64,135.6,3.318]
[1726116155867,3.3169,135.65,135.61,3.3178]
[1726116156174,3.3169,135.65,135.6,11.33]
[1726116156568,3.3171,135.64,135.6,11.33]
[1726116156869,3.65946585,135.66,135.59,4.0611]
[1726116157061,11.33,135.65,135.59,15.3911]
[1726116157763,3.3174,135.63,135.6,3.3179]
[1726116162574,3.3177,135.62,135.59,1.3785]
[1726116163686,11.33,135.65,135.59,12.7085]
[1726116164088,15.06837815,135.65,135.59,12.7085]
[1726116164489,3.73837815,135.65,135.59,12.7085]
[1726116164690,3.3172,135.64,135.6,3.3179]
[1726116165791,3.3173,135.63,135.6,3.3179]
[1726116166388,3.3173,135.63,135.59,16.0267]
[1726116171290,3.3173,135.63,135.6,3.318]
[1726116172398,3.3172,135.64,135.6,3.318]
[1726116173485,3.3172,135.64,135.61,3.3177]
[1726116175997,3.317,135.65,135.61,3.3177]
[1726116177602,3.3171,135.64,135.61,3.3177]
[1726116178297,3.3169,135.65,135.61,3.3177]
[1726116178800,3.3169,135.65,135.62,3.3175]
[1726116180201,3.3169,135.65,135.61,3.3177]
[1726116187104,14.6469,135.65,135.61,3.3177]
[1726116188805,130.88293712,135.89,135.62,11.33]
[1726116189009,11.33,135.69,135.62,11.33]
[1726116189203,3.3162,135.68,135.64,3.3169]
[1726116189405,11.33,135.69,135.63,11.33]
[1726116191913,3.3164,135.67,135.64,3.317]
[1726116194018,3.3164,135.67,135.63,3.3173]
[1726116195317,14.6462,135.68,135.64,3.317]
[1726116196221,11.33,135.68,135.65,3.3168]
[1726116196606,11.33,135.68,135.62,11.33]
[1726116197416,14.6462,135.68,135.64,3.3171]
[1726116200118,14.6462,135.68,135.62,11.33]
[1726116200720,14.6462,135.68,135.64,3.3169]
[1726116203121,3.3158,135.69,135.65,3.3167]
[1726116204116,3.3157,135.7,135.66,3.3165]
[1726116204313,1.385,135.72,135.66,11.33]
[1726116204511,11.33,135.72,135.66,11.33]
[1726116204819,3.3152,135.72,135.68,3.316]
[1726116205020,14.6452,135.72,135.68,3.316]
[1726116206621,3.3149,135.73,135.68,11.33]
[1726116206923,11.33,135.74,135.68,11.33]
[1726116207123,14.6447,135.74,135.7,3.3154]
[1726116207321,3.66512246,135.76,135.7,11.33]
[1726116207521,14.99512246,135.76,135.7,11.33]
[1726116207724,14.99512246,135.76,135.71,3.3153]
[1726116207916,14.99512246,135.76,135.7,11.33]
[1726116208110,11.33,135.76,135.7,11.33]
[1726116209812,3.3146,135.74,135.71,3.3152]
[1726116210329,11.33,135.74,135.67,11.33]
[1726116211828,3.3153,135.72,135.69,3.3158]
[1726116214222,3.3153,135.72,135.68,3.316]
[1726116215728,3.3153,135.72,135.68,14.646]
[1726116217926,3.3153,135.72,135.68,3.316]
[1726116218228,3.3153,135.72,135.68,14.646]
[1726116223122,3.3155,135.71,135.68,11.33]
[1726116223325,5.11430022,135.77,135.69,11.33]
[1726116223533,11.33,135.75,135.69,11.33]
[1726116223729,3.3148,135.74,135.7,3.3154]
[1726116224527,3.3148,135.74,135.71,3.3153]
[1726116225427,3.3149,135.73,135.7,3.3156]
[1726116225831,3.3149,135.73,135.69,11.33]
[1726116226043,3.3149,135.73,135.69,14.6457]
[1726116226335,3.3149,135.73,135.69,11.33]
[1726116226536,3.3147,135.74,135.7,3.3155]
[1726116229336,3.3144,135.75,135.71,3.3153]
[1726116229533,16.44430022,135.77,135.7,11.33]
[1726116229837,5.11430022,135.77,135.72,14.6449]
[1726116230839,3.3143,135.76,135.72,14.6449]
[1726116231232,5.11430022,135.77,135.72,11.33]
[1726116231437,3.3146,135.74,135.7,14.6454]
[1726116233638,3.3146,135.74,135.71,3.3153]
[1726116243853,16.44430022,135.77,135.7,14.6455]
[1726116244056,11.33,135.75,135.69,15.2889]
[1726116244356,3.315,135.73,135.69,4.6156]
[1726116246052,3.3151,135.72,135.69,1.2998]
[1726116246251,3.3151,135.72,135.68,11.33]
[1726116246252,3.3151,135.72,135.68,14.646]
[1726116249360,3.3151,135.72,135.69,3.3158]
[1726116250258,3.3149,135.73,135.69,3.3158]
[1726116250754,3.3147,135.74,135.7,14.6455]
[1726116251064,3.3147,135.74,135.7,11.33]
[1726116251755,3.3147,135.74,135.71,3.3153]
[1726116252357,3.3147,135.74,135.7,14.6456]
[1726116256265,3.3149,135.73,135.7,3.3156]
[1726116260871,3.3147,135.74,135.7,3.3156]
[1726116270175,5.11430022,135.77,135.69,3.3157]
[1726116270176,11.33,135.75,135.69,3.3157]
[1726116270377,11.33,135.73,135.69,3.3157]
[1726116271783,3.3151,135.72,135.69,3.3157]
[1726116283883,3.3156,135.71,135.67,1.4171]
[1726116284583,3.3156,135.71,135.67,4.7333]
[1726116286879,3.3157,135.7,135.67,4.7333]
[1726116288882,3.3157,135.7,135.67,1.4171]
[1726116289882,3.3157,135.7,135.66,16.008]
[1726116291674,3.3157,135.7,135.67,3.3163]
[1726116291890,3.3157,135.7,135.66,1.3615]
[1726116292681,3.3157,135.7,135.66,4.678]
[1726116294383,3.3159,135.69,135.66,4.678]
[1726116294584,3.3159,135.69,135.66,3.3165]
[1726116295892,3.3159,135.69,135.65,14.6467]
[1726116297189,3.3159,135.69,135.66,3.3165]
[1726116298893,3.3163,135.67,135.45,26.5732]
[1726116299090,11.33,135.67,135.62,11.33]
[1726116299289,2.7103,135.73,135.62,11.33]
[1726116299482,11.33,135.69,135.62,11.33]
[1726116300388,3.3162,135.68,135.64,3.3169]
[1726116302692,3.3165,135.67,135.63,3.3173]
[1726116304599,14.6465,135.67,135.63,3.3173]
[1726116304895,11.33,135.66,135.61,5.84388794]
[1726116305101,11.33,135.65,135.61,5.84388794]
[1726116305297,11.33,135.66,135.61,5.84388794]
[1726116305500,11.33,135.69,135.63,11.33]
[1726116305797,3.3163,135.67,135.63,14.6472]
[1726116305998,14.6463,135.67,135.63,3.3172]
[1726116306789,3.3166,135.66,135.62,14.6475]
[1726116307195,11.33,135.66,135.59,14.1464]
[1726116307393,11.33,135.66,135.59,19.99073742]
[1726116307597,11.33,135.66,135.59,14.1464]
[1726116308203,14.6466,135.66,135.61,3.3176]
[1726116309400,14.6468,135.65,135.61,3.3176]
[1726116312104,11.33,135.62,135.51,3.71848068]
[1726116312300,4.1436,135.66,135.54,4.031]
[1726116312495,11.33,135.57,135.54,4.031]
[1726116312698,11.33,135.57,135.54,7.3505]
[1726116317205,3.3184,135.59,135.54,18.6805]
[1726116317507,4.1436,135.66,135.54,15.361]
[1726116317508,11.33,135.6,135.54,15.361]
[1726116318908,14.6481,135.6,135.56,3.319]
[1726116319304,11.33,135.6,135.54,15.361]
[1726116319510,11.33,135.59,135.54,4.031]
[1726116320309,11.33,135.57,135.54,4.031]
[1726116320811,11.33,135.57,135.54,7.3504]
[1726116323112,14.6489,135.57,135.45,6.6433]
[1726116323304,11.33,135.57,135.51,11.33]
[1726116323499,11.33,135.57,135.52,1.3416]
[1726116324811,11.33,135.57,135.54,3.3195]
[1726116326502,3.3187,135.58,135.54,14.6495]
[1726116327006,3.3187,135.58,135.54,3.3195]
[1726116327806,4.1436,135.66,135.54,11.33]
[1726116328000,11.33,135.61,135.54,11.33]
[1726116328204,3.3183,135.6,135.56,3.3189]
[1726116328403,11.33,135.59,135.56,3.3189]
[1726116328806,11.33,135.59,135.54,3.3193]
[1726116329007,11.33,135.58,135.54,3.3193]
[1726116330305,7.80643455,135.66,135.53,2.676]
[1726116330306,14.6488,135.57,135.53,5.9957]
[1726116331720,11.33,135.57,135.54,3.3195]
[1726116331912,11.33,135.58,135.53,14.006]
[1726116332302,11.33,135.58,135.53,2.676]
[1726116333813,14.6487,135.58,135.54,3.3194]
[1726116334610,11.33,135.57,135.54,3.3194]
[1726116334811,14.6488,135.57,135.53,3.3197]
[1726116336017,11.33,135.56,135.53,3.3197]
[1726116336219,14.649,135.56,135.53,3.3197]
[1726116337511,14.649,135.56,135.52,4.6616]
[1726116339015,14.649,135.56,135.53,3.3197]
[1726116339915,11.33,135.56,135.53,3.3197]
[1726116341123,14.6488,135.57,135.53,3.3197]
[1726116341416,14.6485,135.58,135.54,3.3195]
[1726116343719,3.3188,135.57,135.53,3.3196]
[1726116344022,3.75608191,135.59,135.52,1.3416]
[1726116344023,11.33,135.56,135.52,1.3416]
[1726116344628,14.6491,135.56,135.52,4.6614]
[1726116346319,11.33,135.56,135.53,3.3197]
[1726116346922,7.80643455,135.66,135.54,11.33]
[1726116347228,11.33,135.62,135.56,11.33]
[1726116347725,14.6477,135.62,135.58,3.3185]
[1726116348115,11.33,135.62,135.58,3.3185]
[1726116349820,11.33,135.61,135.55,11.33]
[1726116350126,11.33,135.59,135.53,12.6829]
[1726116350825,11.33,135.58,135.55,3.3191]
[1726116351023,11.33,135.58,135.52,14.068]
[1726116351229,14.6486,135.58,135.54,3.3194]
[1726116351724,11.33,135.58,135.52,14.068]
[1726116353222,11.33,135.58,135.54,3.3193]
[1726116353929,14.6486,135.58,135.54,3.3193]
[1726116354324,11.33,135.58,135.53,3.3197]
[1726116354526,3.3188,135.57,135.53,3.3197]
[1726116354825,11.33,135.57,135.54,3.3194]
[1726116355525,11.33,135.57,135.53,3.3197]
[1726116356826,14.6488,135.57,135.53,3.3197]
[1726116358624,11.33,135.57,135.54,3.3195]
[1726116362432,14.6488,135.57,135.53,3.3197]
[1726116363927,3.3186,135.58,135.54,3.3195]
[1726116364126,14.6486,135.58,135.54,3.3195]
[1726116364735,11.33,135.58,135.55,3.3192]
[1726116364927,6.98723319,135.59,135.55,3.3192]
[1726116365129,11.33,135.6,135.53,11.33]
[1726116365333,11.33,135.6,135.53,12.6909]
[1726116365630,11.33,135.6,135.53,16.43157301]
[1726116366624,11.33,135.6,135.53,12.6909]
[1726116366828,11.33,135.59,135.53,1.3609]
[1726116367042,11.33,135.57,135.53,1.3609]
[1726116367430,14.6483,135.59,135.55,3.3192]
[1726116369139,3.3186,135.58,135.54,3.3193]
[1726116369344,11.33,135.57,135.54,3.3193]
[1726116370136,14.6486,135.58,135.55,3.3192]
[1726116370342,11.33,135.58,135.55,3.3192]
[1726116371043,14.6485,135.58,135.55,3.3192]
[1726116371250,14.6485,135.58,135.54,3.3195]
[1726116372242,11.33,135.57,135.54,3.3195]
[1726116373437,11.33,135.56,135.53,3.3197]
[1726116375039,3.3188,135.57,135.53,3.3197]
[1726116375239,11.33,135.56,135.53,3.3197]
[1726116379145,14.649,135.56,135.52,3.3199]
[1726116379944,11.33,135.55,135.49,1.3257]
[1726116380142,11.33,135.53,135.5,5.84956921]
[1726116380334,11.33,135.53,135.47,12.7052]
[1726116380845,11.33,135.53,135.49,3.3205]
[1726116386446,11.33,135.53,135.5,3.3204]
[1726116386749,11.33,135.56,135.5,11.33]
[1726116387349,11.33,135.56,135.52,3.3198]
[1726116388256,5.947,135.57,135.52,3.3198]
[1726116388555,11.33,135.56,135.52,3.3198]
[1726116389954,14.6491,135.56,135.52,3.3198]
[1726116390953,11.33,135.54,135.51,3.3201]
[1726116393753,11.33,135.53,135.51,3.3201]
[1726116394455,11.33,135.53,135.5,3.3204]
[1726116395052,3.3195,135.54,135.5,3.3204]
[1726116395259,11.33,135.53,135.5,3.3204]
[1726116395456,14.6498,135.53,135.49,3.3206]
[1726116396270,11.33,135.53,135.5,3.3205]
[1726116399758,14.6498,135.53,135.49,3.3207]
[1726116400166,11.33,135.51,135.49,3.3207]
[1726116400762,11.33,135.51,135.49,3.25904875]
[1726116403862,11.33,135.53,135.5,3.3205]
[1726116408066,11.33,135.51,135.49,3.3207]
[1726116408970,2.6282,135.57,135.45,12.6434]
[1726116408971,11.33,135.5,135.48,3.3209]
[1726116412667,11.33,135.5,135.45,1.3134]
[1726116412869,11.33,135.5,135.47,3.3211]
[1726116413767,11.33,135.48,135.45,1.3134]
[1726116413975,11.33,135.47,135.45,1.3134]
[1726116414565,11.33,135.47,135.44,3.3219]
[1726116414871,11.33,135.47,135.41,11.33]
[1726116415376,11.33,135.47,135.41,12.7377]
[1726116416069,11.33,135.47,135.44,3.3218]
[1726116418075,11.33,135.46,135.43,3.3222]
[1726116418472,4.2428,135.51,135.41,1.4077]
[1726116418679,11.33,135.46,135.44,3.3219]
[1726116419272,4.2428,135.51,135.45,3.3217]
[1726116419579,11.33,135.48,135.45,3.3217]
[1726116420480,11.33,135.49,135.43,11.33]
[1726116421972,11.33,135.49,135.47,3.3212]
[1726116423180,11.33,135.5,135.48,3.3209]
[1726116424384,1.3243,135.57,135.43,11.33]
[1726116424572,11.33,135.5,135.43,11.33]
[1726116424779,11.33,135.5,135.48,3.3208]
[1726116425374,3.3198,135.53,135.49,3.3207]
[1726116425685,11.33,135.52,135.49,3.3207]
[1726116426580,1.3243,135.57,135.5,3.3205]
[1726116426887,11.33,135.53,135.46,12.6691]
[1726116427484,1.3243,135.57,135.46,12.6691]
[1726116427785,11.33,135.52,135.46,12.6691]
[1726116428373,1.3243,135.57,135.47,11.33]
[1726116428579,1.3243,135.57,135.47,14.0819]
[1726116428580,11.33,135.54,135.47,14.0819]
[1726116428775,11.33,135.53,135.49,3.3206]
[1726116431683,14.6498,135.53,135.49,3.3206]
[1726116431880,11.33,135.51,135.48,3.3209]
[1726116432487,11.33,135.51,135.47,6.0731]
[1726116432693,11.33,135.5,135.47,3.3212]
[1726116433180,11.33,135.5,135.46,4.6605]
[1726116433386,11.33,135.5,135.46,3.3214]
[1726116433695,11.33,135.47,135.42,1.3837]
[1726116433876,11.33,135.46,135.42,1.3837]
[1726116434389,11.33,135.46,135.42,4.7061]
[1726116435486,11.33,135.46,135.43,3.3222]
[1726116437386,11.33,135.46,135.42,4.7061]
[1726116437789,11.33,135.44,135.42,3.3224]
[1726116438694,11.33,135.44,135.4,6.0555]
[1726116439989,11.33,135.43,135.4,3.3229]
[1726116444498,3.3214,135.47,135.42,3.3224]
[1726116444801,11.33,135.45,135.42,3.3224]
[1726116445703,11.33,135.45,135.39,11.33]
[1726116446207,11.33,135.45,135.36,4.0767]
[1726116446400,11.33,135.45,135.38,11.33]
[1726116446801,11.33,135.45,135.42,3.3223]
[1726116449403,11.33,135.46,135.43,3.3222]
[1726116450697,11.33,135.45,135.43,3.3222]
[1726116451711,11.33,135.45,135.42,3.3224]
[1726116452506,11.33,135.44,135.36,4.0767]
[1726116452705,11.33,135.44,135.38,11.33]
[1726116453107,11.33,135.44,135.41,3.3225]
[1726116453510,11.33,135.44,135.42,3.3223]
[1726116453706,11.33,135.44,135.38,11.33]
[1726116454011,11.33,135.44,135.37,11.33]
[1726116454312,11.33,135.44,135.4,3.3227]
[1726116454912,14.652,135.44,135.4,3.3227]
[1726116455705,11.33,135.44,135.4,3.3227]
[1726116456414,14.652,135.44,135.4,3.3227]
[1726116459504,11.33,135.42,135.39,3.3231]
[1726116462719,11.33,135.42,135.4,3.3229]
[1726116463118,11.33,135.42,135.36,4.0767]
[1726116463310,11.33,135.42,135.39,3.3231]
[1726116464513,11.33,135.42,135.36,4.0767]
[1726116464514,3.62508985,135.48,135.38,11.33]
[1726116464718,11.33,135.45,135.39,11.33]
[1726116465617,11.33,135.46,135.39,11.33]
[1726116466014,14.6515,135.46,135.41,3.3225]
[1726116466317,11.33,135.45,135.41,3.3225]
[1726116466919,11.33,135.45,135.4,3.3229]
[1726116467213,11.33,135.45,135.37,11.33]
[1726116467619,11.33,135.45,135.38,3.73106935]
[1726116468921,11.33,135.45,135.41,3.3225]
[1726116469719,11.33,135.43,135.36,4.0767]
[1726116469921,11.33,135.43,135.38,11.33]
[1726116470217,11.33,135.44,135.42,3.3223]
[1726116471119,11.33,135.44,135.41,3.3226]
[1726116471422,11.33,135.44,135.37,11.33]
[1726116471821,11.33,135.44,135.4,3.3227]
[1726116472618,14.652,135.44,135.4,3.3227]
[1726116473224,11.33,135.43,135.4,3.3227]
[1726116475217,11.33,135.44,135.41,3.3226]
[1726116481226,4.6786,135.46,135.42,3.3224]
[1726116481425,1.357,135.46,135.39,11.33]
[1726116481624,12.687,135.46,135.39,11.33]
[1726116482326,12.687,135.46,135.41,3.3227]
[1726116482528,11.33,135.44,135.38,11.33]
[1726116483632,11.33,135.44,135.4,3.3227]
[1726116485630,11.33,135.44,135.41,3.3225]
[1726116486027,11.33,135.44,135.38,14.98120819]
[1726116486028,11.33,135.44,135.39,11.33]
[1726116486423,11.33,135.44,135.42,3.3224]
[1726116486626,2.7292,135.5,135.42,11.33]
[1726116486822,11.33,135.48,135.42,11.33]
[1726116487023,11.33,135.48,135.44,3.3218]
[1726116487826,14.6517,135.46,135.39,17.18403601]
[1726116488027,11.33,135.45,135.39,11.33]
[1726116488224,11.33,135.45,135.38,15.02958568]
[1726116489021,11.33,135.45,135.41,3.3225]
[1726116490232,11.33,135.43,135.4,3.3229]
[1726116495830,11.33,135.43,135.39,3.3232]
[1726116496230,11.33,135.43,135.37,11.33]
[1726116496430,11.33,135.43,135.4,3.3229]
[1726116506855,11.33,135.43,135.39,3.3231]
[1726116508145,11.33,135.43,135.4,3.3229]
[1726116510949,3.3218,135.45,135.41,3.3227]
[1726116511150,11.33,135.44,135.41,3.3227]
[1726116512157,3.3215,135.46,135.42,3.3224]
[1726116512356,6.44208026,135.5,135.41,11.33]
[1726116512561,11.33,135.47,135.41,11.33]
[1726116512852,11.33,135.47,135.44,3.3217]
[1726116514554,11.33,135.47,135.45,3.3217]
[1726116514755,6.44208026,135.5,135.45,3.3217]
[1726116514756,3.3208,135.49,135.45,3.3217]
[1726116515061,3.3208,135.49,135.43,5.85401166]
[1726116515062,11.33,135.48,135.43,5.85401166]
[1726116515265,11.33,135.48,135.42,11.33]
[1726116515457,11.33,135.48,135.43,5.85346629]
[1726116515757,11.33,135.48,135.42,11.33]
[1726116515961,11.33,135.48,135.43,5.85344937]
[1726116516264,11.33,135.48,135.42,11.33]
[1726116516852,14.651,135.48,135.44,3.3218]
[1726116517053,11.33,135.47,135.44,3.3218]
[1726116520155,11.33,135.47,135.45,3.3215]
[1726116520453,11.33,135.47,135.42,5.85363327]
[1726116520662,11.33,135.47,135.43,3.322]
[1726116524258,14.6513,135.47,135.43,3.322]
[1726116524560,11.33,135.46,135.42,3.3224]
[1726116525850,11.33,135.45,135.42,3.3224]
[1726116526255,11.33,135.45,135.41,3.3226]
[1726116529156,14.6517,135.45,135.41,3.3226]
[1726116530362,3.3216,135.46,135.42,3.3224]
[1726116530557,11.33,135.46,135.42,3.3224]
[1726116530966,14.6515,135.46,135.42,3.3224]
[1726116535264,14.6518,135.45,135.42,3.3224]
[1726116535565,11.33,135.43,135.41,3.3226]
[1726116535774,11.33,135.43,135.38,5.8550424]
[1726116535963,14.6522,135.43,135.36,3.9461]
[1726116536157,11.33,135.41,135.37,5.85542812]
[1726116536357,11.33,135.41,135.36,1.3018]
[1726116537966,11.33,135.41,135.38,3.3233]
[1726116541269,11.33,135.41,135.37,3.3236]
[1726116542978,11.33,135.41,135.38,3.3234]
[1726116543180,14.6527,135.41,135.36,1.3018]
[1726116543573,11.33,135.4,135.36,4.6256]
[1726116544266,14.6529,135.4,135.36,9.18016367]
[1726116544579,14.6529,135.4,135.36,3.3238]
[1726116546977,14.6529,135.4,135.35,3.324]
[1726116548679,11.33,135.38,135.34,9.18145621]
[1726116549379,11.33,135.38,135.34,3.3244]
[1726116549775,11.33,135.38,135.35,3.3241]
[1726116550383,11.33,135.39,135.35,3.3241]
[1726116550686,11.33,135.39,135.33,1.4064]
[1726116551483,11.33,135.39,135.33,7.26353488]
[1726116551984,1.3908,135.41,135.34,11.33]
[1726116552172,11.33,135.41,135.34,17.18686216]
[1726116553084,11.33,135.41,135.37,3.3235]
[1726116554080,4.6526,135.42,135.37,3.3235]
[1726116554278,1.33,135.42,135.35,11.33]
[1726116554478,12.66,135.42,135.35,11.33]
[1726116554674,12.66,135.42,135.35,17.18649946]
[1726116554870,12.66,135.42,135.35,11.33]
[1726116555075,12.66,135.42,135.35,17.18649946]
[1726116555285,12.66,135.42,135.38,3.3232]
[1726116555786,11.33,135.41,135.38,3.3232]
[1726116556078,11.33,135.41,135.36,3.3238]
[1726116556281,11.33,135.4,135.36,3.3238]
[1726116556476,11.33,135.38,135.34,5.85643195]
[1726116556677,11.33,135.38,135.33,1.4064]
[1726116556883,14.653,135.4,135.33,11.33]
[1726116557079,11.33,135.4,135.34,5.85678375]
[1726116557780,11.33,135.4,135.37,3.3236]
[1726116558288,11.33,135.4,135.36,3.3238]
[1726116558585,11.33,135.4,135.34,5.85678375]
[1726116558787,11.33,135.4,135.37,3.3235]
[1726116559590,11.33,135.4,135.36,3.3238]
[1726116560384,14.653,135.4,135.36,3.3238]
[1726116561188,11.33,135.38,135.36,3.3238]